bitfinex-derivatives/quotes_SOLF0:USTF0_20250808
["timestamp","ask_amount","ask_price","bid_price","bid_amount"]
[1754662821072,3.15,176.97,176.92,120.88]
[1754662821675,3.15,176.96,176.92,120.88]
[1754662821868,3.15,176.95,176.92,126.5304]
[1754662822064,3.15,176.95,176.92,120.88]
[1754662822571,3.15,176.95,176.92,126.5305]
[1754662822964,9.96609056,176.98,176.92,120.88]
[1754662823169,3.16827659,176.97,176.92,120.88]
[1754662823363,6.31827659,176.96,176.88,355.84]
[1754662823575,3.15,176.95,176.88,120.84]
[1754662824169,3.15,176.95,176.9,5.6512]
[1754662824365,6.31734062,176.95,176.88,120.84]
[1754662824565,3.15,176.95,176.88,120.84]
[1754662824774,3.15,176.95,176.89,3.1]
[1754662825373,3.15,176.95,176.88,120.84]
[1754662825570,3.15,176.95,176.88,123.94]
[1754662825880,3.15,176.96,176.88,120.84]
[1754662826071,3.15,176.95,176.88,120.84]
[1754662826472,3.15,176.95,176.88,123.94]
[1754662826679,3.15,176.95,176.88,130.50140681]
[1754662826874,6.56140681,176.92,176.82,3.1]
[1754662827069,3.15,176.91,176.84,9.66140681]
[1754662827273,3.15,176.91,176.85,3.1]
[1754662827476,3.15,176.9,176.87,3.1]
[1754662827981,3.16287223,176.93,176.92,8.7507]
[1754662828276,3.15,176.98,176.92,3.1]
[1754662828475,3.15,176.98,176.8,246.3089]
[1754662828476,3.15,176.98,176.93,6.56140681]
[1754662828681,3.15,176.98,176.95,9.66140681]
[1754662828975,3.16287223,177.03,176.95,9.66140681]
[1754662828976,3.15,177.0,176.97,6.56140681]
[1754662829176,3.15,176.99,176.97,6.56140681]
[1754662829374,3.16287223,177.04,176.97,6.56140681]
[1754662829375,3.15,177.04,176.97,9.66140681]
[1754662829576,3.15,177.03,176.99,15.30990681]
[1754662829772,3.15,177.01,176.99,6.56140681]
[1754662829978,3.15,177.01,176.97,9.66140681]
[1754662830176,3.16287223,177.07,176.98,5.6485]
[1754662830371,6.31287223,177.06,176.97,6.56140681]
[1754662830574,19.39981355,177.17,176.95,3.1]
[1754662830575,3.15,177.03,176.95,9.66140681]
[1754662830977,6.31287223,177.02,176.93,6.56140681]
[1754662831280,3.15,177.01,176.93,6.56140681]
[1754662831671,3.15,177.01,176.94,3.1]
[1754662831975,3.15,177.01,176.95,6.56140681]
[1754662833172,3.15,177.01,176.96,5.6494]
[1754662833377,3.15,177.02,176.94,3.1]
[1754662833579,3.15,177.02,176.69,1673.02290481]
[1754662833580,3.15,177.0,176.87,3.1]
[1754662833779,3.15,176.95,176.87,123.82]
[1754662834175,3.15,176.94,176.87,123.82]
[1754662834481,3.15,176.94,176.88,5.6518]
[1754662834777,6.56140681,176.94,176.84,3.1]
[1754662834987,3.15,176.93,176.87,5.6522]
[1754662835481,3.15,176.92,176.87,5.6522]
[1754662835682,3.15,176.92,176.84,3.1]
[1754662836183,3.24,176.94,176.86,3.04]
[1754662836382,6.40016449,176.94,176.86,3.04]
[1754662836578,6.40016449,176.94,176.92,5.6507]
[1754662836876,3.24,176.96,176.93,3.04]
[1754662837078,6.40016449,176.99,176.94,8.6901]
[1754662837277,6.40016449,177.02,176.96,3.04]
[1754662837478,3.16016449,177.01,176.97,3.04]
[1754662837679,3.24,177.01,176.96,9.9688706]
[1754662837886,3.24,177.01,176.97,3.04]
[1754662838078,3.24,177.01,176.98,3.04]
[1754662838687,3.16016449,177.0,176.98,3.04]
[1754662839180,3.24,177.04,176.96,9.9688706]
[1754662839181,3.16016449,176.99,176.96,9.9688706]
[1754662839383,3.16016449,177.03,177.0,5.6481]
[1754662839582,3.16016449,177.02,176.96,9.9688706]
[1754662839783,3.16016449,177.01,176.97,3.04]
[1754662839989,3.16016449,177.0,176.99,5.6486]
[1754662840282,3.24,177.09,177.0,0.15]
[1754662840480,3.24,177.09,177.02,10.1188706]
[1754662840874,3.24,177.12,177.06,0.15]
[1754662841073,4.71574095,177.13,177.08,9.9688706]
[1754662841284,6.29614219,177.15,177.08,10.1188706]
[1754662841285,7.95574095,177.15,177.08,10.1188706]
[1754662841480,3.24,177.15,177.08,10.1188706]
[1754662841682,3.24,177.14,177.08,10.1188706]
[1754662841980,3.24,177.14,177.06,120.6]
[1754662842174,3.24,177.12,177.06,120.75]
[1754662842374,3.24,177.12,177.06,120.6]
[1754662842579,3.24,177.12,177.06,120.58]
[1754662843073,3.24,177.12,177.06,130.5488706]
[1754662843276,7.95574095,177.14,177.1,0.15]
[1754662843582,19.39981355,177.17,177.12,9.9688706]
[1754662843583,7.95574095,177.17,177.12,9.9688706]
[1754662843779,7.95574095,177.17,177.13,0.15]
[1754662844581,4.71574095,177.17,177.14,0.15]
[1754662845084,4.71574095,177.17,177.12,10.1188706]
[1754662845377,4.71574095,177.17,177.14,5.6437]
[1754662845583,4.71574095,177.17,177.14,5.7937]
[1754662845786,4.71574095,177.17,177.15,9.9688706]
[1754662846179,4.71574095,177.18,177.15,9.9688706]
[1754662846483,6.29614219,177.2,177.18,5.6422]
[1754662846484,4.71574095,177.2,177.18,5.6422]
[1754662846683,4.71574095,177.22,177.18,9.9688706]
[1754662846987,4.71574095,177.24,177.21,9.9688706]
[1754662847188,6.29614219,177.26,177.21,9.9688706]
[1754662847189,4.71574095,177.26,177.21,10.0988706]
[1754662847384,7.95574095,177.25,177.22,9.9688706]
[1754662847585,3.24,177.24,177.22,9.9688706]
[1754662848881,3.24,177.25,177.22,9.9688706]
[1754662849086,4.71574095,177.3,177.25,0.13]
[1754662849283,4.71574095,177.33,177.29,9.9688706]
[1754662849587,3.24,177.3,177.27,9.9688706]
[1754662849885,3.24,177.29,177.27,9.9688706]
[1754662850081,3.24,177.29,177.26,0.13]
[1754662850384,3.24,177.29,177.26,9.9688706]
[1754662850888,3.24,177.32,177.26,10.0988706]
[1754662851085,3.24,177.32,177.29,9.9688706]
[1754662851282,3.24,177.35,177.29,10.0988706]
[1754662851491,3.24,177.35,177.26,9.9688706]
[1754662851686,5.6374,177.34,177.26,9.9688706]
[1754662851990,17.92461155,177.36,177.23,10.0988706]
[1754662852175,8.8775,177.34,177.24,5.6403]
[1754662852382,3.24,177.32,177.26,9.9688706]
[1754662852580,3.24,177.32,177.25,9.9688706]
[1754662853680,5.6378,177.33,177.25,9.9688706]
[1754662853681,3.08730844,177.33,177.25,9.9688706]
[1754662853882,3.24,177.31,177.25,9.9688706]
[1754662854787,3.24,177.34,177.25,9.9688706]
[1754662854984,3.08730844,177.34,177.23,130.2888706]
[1754662855188,3.24,177.31,177.24,5.6406]
[1754662855378,3.08730844,177.31,177.23,130.2888706]
[1754662855688,9.9688706,177.36,177.23,130.2888706]
[1754662855689,3.24,177.3,177.23,130.2888706]
[1754662855884,3.24,177.3,177.23,9.9688706]
[1754662856082,3.24,177.3,177.21,120.22]
[1754662856386,3.24,177.3,177.24,5.6404]
[1754662856590,3.24,177.3,177.23,9.9688706]
[1754662856984,3.24,177.29,177.23,15.6097706]
[1754662857182,3.08730844,177.29,177.23,9.9688706]
[1754662857383,3.24,177.33,177.23,9.9688706]
[1754662857784,9.9688706,177.31,177.19,0.13]
[1754662857984,3.24,177.29,177.19,0.13]
[1754662858185,3.24,177.29,177.18,9.9688706]
[1754662858387,3.24,177.24,177.17,379.62]
[1754662860589,3.24,177.24,177.17,385.2628]
[1754662860781,3.24,177.24,177.17,379.62]
[1754662860982,3.24,177.24,177.17,385.2628]
[1754662861185,3.24,177.24,177.19,9.9688706]
[1754662861383,3.24,177.23,177.19,9.9688706]
[1754662861592,3.24,177.22,177.19,5.772]
[1754662861797,3.24,177.28,177.17,379.62]
[1754662862093,3.24,177.22,177.11,9.9688706]
[1754662862387,9.9688706,177.2,177.12,120.1]
[1754662862592,5.6427,177.18,177.12,120.1]
[1754662862894,3.24,177.17,177.08,9.9688706]
[1754662863091,3.24,177.17,177.08,10.1488706]
[1754662863587,3.2798524,177.14,177.11,5.6446]
[1754662863793,3.2798524,177.14,177.08,10.1488706]
[1754662864088,3.07292496,177.2,177.13,5.6439]
[1754662864295,3.07292496,177.2,177.07,499.34]
[1754662864296,3.24,177.16,177.11,9.9688706]
[1754662864587,3.24,177.16,177.14,5.6436]
[1754662864987,3.24,177.16,177.13,0.18]
[1754662865186,3.27741711,177.18,177.14,9.9688706]
[1754662865389,0.03741711,177.18,177.17,9.9688706]
[1754662865600,3.06930511,177.27,177.17,9.9688706]
[1754662865790,3.24,177.26,177.17,9.9688706]
[1754662865989,0.03988312,177.19,177.17,10.1488706]
[1754662866185,3.24,177.22,177.17,9.9688706]
[1754662866388,3.24,177.28,177.2,9.9688706]
[1754662866788,3.24,177.28,177.19,120.04]
[1754662866789,3.24,177.28,177.23,10.1488706]
[1754662866984,0.03969965,177.26,177.24,0.18]
[1754662867390,3.24,177.25,177.18,9.9688706]
[1754662867685,3.24,177.25,177.21,5.6413]
[1754662867885,3.24,177.24,177.19,0.18]
[1754662868093,0.03755735,177.25,177.21,9.9688706]
[1754662868292,0.03755735,177.25,177.12,9.9688706]
[1754662868293,0.03755735,177.25,177.24,15.6094706]
[1754662868487,9.9688706,177.37,177.24,15.6094706]
[1754662868488,3.24,177.3,177.24,10.1488706]
[1754662868889,3.24,177.3,177.28,5.6394]
[1754662869095,3.24,177.3,177.27,9.9688706]
[1754662869295,3.24,177.36,177.27,10.1488706]
[1754662870101,0.03589757,177.33,177.27,10.1488706]
[1754662870396,3.27589757,177.33,177.29,5.639]
[1754662870597,0.03589757,177.33,177.29,5.639]
[1754662870795,3.24,177.3,177.27,10.1488706]
[1754662870996,3.24,177.3,177.28,5.6392]
[1754662871196,3.27589757,177.33,177.27,10.1488706]
[1754662871392,3.27589757,177.33,177.19,379.26]
[1754662871393,0.03589757,177.33,177.31,0.18]
[1754662871701,0.03589757,177.33,177.32,5.6381]
[1754662871900,3.24,177.39,177.3,9.9688706]
[1754662872097,5.6364,177.38,177.3,9.9688706]
[1754662872402,3.24,177.37,177.3,9.9688706]
[1754662873702,8.8766,177.37,177.3,9.9688706]
[1754662873905,3.24,177.35,177.28,119.92]
[1754662874801,3.24,177.35,177.29,5.6388]
[1754662875203,3.24,177.35,177.28,119.92]
[1754662875407,3.24,177.35,177.27,9.9688706]
[1754662875598,3.24,177.34,177.31,0.18]
[1754662875900,6.29614219,177.46,177.33,10.1488706]
[1754662875901,3.24,177.41,177.33,10.1488706]
[1754662876104,3.24,177.44,177.36,10.1488706]
[1754662876501,379.18,177.48,177.36,9.9688706]
[1754662876502,3.24,177.43,177.36,9.9688706]
[1754662876903,3.24,177.43,177.36,15.6055706]
[1754662877104,3.24,177.43,177.36,9.9688706]
[1754662877600,3.24,177.43,177.38,0.18]
[1754662877800,3.24,177.45,177.39,9.9688706]
[1754662878206,3.24,177.45,177.39,15.6044706]
[1754662878406,3.24,177.45,177.39,9.9688706]
[1754662878802,3.24,177.43,177.39,9.9688706]
[1754662879008,3.24,177.46,177.42,10.1488706]
[1754662879308,0.03972723,177.44,177.43,5.8146]
[1754662879501,3.24,177.47,177.45,9.9688706]
[1754662879809,3.24,177.49,177.45,9.9688706]
[1754662880102,3.24,177.49,177.44,9.9688706]
[1754662880609,6.31174258,177.48,177.42,9.9688706]
[1754662880802,6.31174258,177.47,177.45,0.03828969]
[1754662881000,6.31174258,177.47,177.39,129.6488706]
[1754662881001,3.07174258,177.46,177.39,129.6488706]
[1754662881208,6.31174258,177.45,177.39,129.6488706]
[1754662881501,3.24,177.42,177.39,129.8288706]
[1754662881702,3.24,177.42,177.39,135.4645706]
[1754662881900,3.07174258,177.47,177.39,129.6488706]
[1754662882098,3.07174258,177.46,177.39,9.9688706]
[1754662882303,9.9688706,177.51,177.39,9.9688706]
[1754662882304,3.24,177.44,177.39,9.9688706]
[1754662882610,3.24,177.41,177.39,9.9688706]
[1754662882910,3.07174258,177.42,177.39,9.9688706]
[1754662883110,3.07174258,177.41,177.4,0.18]
[1754662883305,3.07174258,177.43,177.41,5.815]
[1754662883609,3.11215992,177.42,177.41,5.815]
[1754662883911,3.07174258,177.46,177.38,0.03658322]
[1754662884100,3.07174258,177.45,177.39,0.18]
[1754662884301,3.07174258,177.44,177.43,5.6346]
[1754662884609,3.07174258,177.44,177.43,5.8146]
[1754662885010,6.31174258,177.47,177.43,135.3634706]
[1754662885212,3.07174258,177.46,177.44,0.18]
[1754662885407,3.24,177.44,177.43,9.9688706]
[1754662885711,3.24,177.43,177.4,129.5288706]
[1754662885906,3.07174258,177.42,177.4,129.5288706]
[1754662886113,3.07174258,177.42,177.41,5.6353]
[1754662886311,3.07174258,177.42,177.4,129.7088706]
[1754662886513,3.07174258,177.41,177.4,129.7088706]
[1754662886807,3.24,177.44,177.4,129.7088706]
[1754662887012,3.07174258,177.43,177.41,0.18]
[1754662887213,3.07174258,177.42,177.4,129.5288706]
[1754662887414,3.09097672,177.41,177.4,129.7088706]
[1754662887607,3.09097672,177.41,177.4,129.5288706]
[1754662888008,3.09104562,177.41,177.4,129.5288706]
[1754662888204,4.562e-05,177.41,177.4,129.7088706]
[1754662888514,3.09220231,177.46,177.45,5.634]
[1754662888811,19.37652799,177.55,177.45,129.4488706]
[1754662889009,3.24,177.54,177.51,9.9688706]
[1754662889211,4.64743991,177.6,177.51,129.4288706]
[1754662889411,3.24,177.52,177.51,9.9688706]
[1754662889709,9.9688706,177.62,177.5,119.46]
[1754662889710,3.24,177.51,177.5,119.46]
[1754662889914,3.24,177.51,177.5,0.04086336]
[1754662890317,3.24,177.54,177.5,0.04086336]
[1754662890516,3.24,177.59,177.51,9.9688706]
[1754662890716,3.24,177.57,177.51,9.9688706]
[1754662891106,9.9688706,177.56,177.44,0.18]
[1754662891311,3.24,177.52,177.44,119.4]
[1754662891708,3.24,177.52,177.46,10.00923712]
[1754662891912,3.24,177.55,177.46,10.00923712]
[1754662892110,9.9688706,177.51,177.46,0.04036652]
[1754662892316,3.24,177.5,177.41,119.4]
[1754662892915,14.61631051,177.51,177.4,119.36]
[1754662893115,3.24,177.47,177.36,119.34]
[1754662893520,3.24,177.46,177.38,10.1888706]
[1754662893823,3.24,177.46,177.39,119.34]
[1754662894022,3.24,177.45,177.39,119.56]
[1754662894217,3.24,177.45,177.41,10.1888706]
[1754662894520,4.64743991,177.52,177.41,9.9688706]
[1754662894720,3.24,177.41,177.39,119.34]
[1754662894927,14.61631051,177.51,177.39,119.34]
[1754662895123,3.24,177.5,177.4,9.9688706]
[1754662895320,3.24,177.5,177.4,10.1888706]
[1754662895725,3.24,177.5,177.43,5.6345]
[1754662896022,3.24,177.5,177.41,119.3]
[1754662896228,3.27,177.49,177.41,119.5]
[1754662897822,3.27,177.49,177.43,5.6345]
[1754662898022,3.27,177.49,177.41,119.3]
[1754662899832,9.9688706,177.47,177.34,0.2]
[1754662900031,3.27,177.46,177.35,119.22]
[1754662901022,3.27,177.44,177.35,119.22]
[1754662901427,3.27,177.44,177.38,5.6361]
[1754662901623,3.27,177.44,177.35,119.22]
[1754662901833,3.27,177.43,177.35,119.22]
[1754662902433,3.27,177.43,177.33,497.94]
[1754662902738,3.27,177.42,177.37,5.6366]
[1754662903339,3.27,177.42,177.36,5.6368]
[1754662903629,3.27,177.42,177.33,497.94]
[1754662903838,4.64743991,177.45,177.39,5.6358]
[1754662904031,3.27,177.45,177.35,9.9688706]
[1754662904225,3.27,177.45,177.41,9.9688706]
[1754662904431,3.27,177.45,177.42,5.635]
[1754662904627,3.27,177.48,177.42,5.635]
[1754662905025,3.27,177.48,177.41,15.6041706]
[1754662905332,5.6334,177.47,177.39,119.16]
[1754662905529,3.27,177.46,177.39,119.16]
[1754662905734,3.27,177.46,177.41,5.6351]
[1754662906038,3.27,177.46,177.39,119.16]
[1754662906331,3.27,177.45,177.39,119.16]
[1754662906930,3.27,177.45,177.35,9.9688706]
[1754662907130,3.27,177.43,177.35,9.9688706]
[1754662908633,3.27,177.43,177.33,497.86]
[1754662908836,3.27,177.41,177.33,497.86]
[1754662909036,3.27,177.41,177.36,5.6367]
[1754662909237,3.27,177.4,177.34,0.2]
[1754662909643,3.27,177.4,177.37,0.2]
[1754662909935,3.27,177.4,177.33,497.86]
[1754662910332,3.27,177.4,177.34,0.2]
[1754662910840,4.64743991,177.41,177.34,0.2]
[1754662911036,3.27,177.4,177.34,0.2]
[1754662911228,3.27,177.38,177.34,0.2]
[1754662911543,3.27,177.34,177.25,9.9688706]
[1754662911728,4.64743991,177.35,177.26,119.0]
[1754662911729,3.27,177.32,177.26,119.0]
[1754662911934,3.09343691,177.31,177.28,0.2]
[1754662912232,3.09343691,177.3,177.28,0.2]
[1754662912437,3.09343691,177.29,177.28,0.2]
[1754662912839,3.09343691,177.29,177.28,5.8395]
[1754662913042,3.27,177.33,177.28,0.2]
[1754662913043,3.09343691,177.32,177.28,0.2]
[1754662913333,3.09343691,177.31,177.3,5.6388]
[1754662913539,3.09343691,177.31,177.3,5.8388]
[1754662914134,3.09343691,177.31,177.28,235.0]
[1754662914335,3.09343691,177.3,177.28,235.0]
[1754662914535,3.09343691,177.29,177.26,119.2]
[1754662914730,3.27,177.27,177.26,119.0]
[1754662914945,6.36343691,177.27,177.26,119.0]
[1754662915139,3.09343691,177.27,177.26,119.0]
[1754662915338,3.09343691,177.27,177.26,119.2]
[1754662915931,6.36343691,177.27,177.23,0.2]
[1754662916136,3.09343691,177.26,177.25,10.1688706]
[1754662916436,7.91743991,177.32,177.25,128.9088706]
[1754662916637,7.91743991,177.32,177.25,369.5488706]
[1754662916838,7.91743991,177.32,177.3,5.6387]
[1754662917141,3.27,177.34,177.29,118.94]
[1754662917344,3.27,177.34,177.31,9.9688706]
[1754662917531,3.27,177.33,177.31,9.9688706]
[1754662917736,3.27,177.31,177.29,118.94]
[1754662918240,3.27,177.3,177.29,118.94]
[1754662918435,4.64743991,177.34,177.29,118.94]
[1754662918637,3.27,177.31,177.29,124.5789]
[1754662918835,3.27,177.34,177.29,118.94]
[1754662919040,3.27,177.32,177.29,118.94]
[1754662919442,4.64743991,177.34,177.29,118.94]
[1754662919840,3.27,177.32,177.29,118.94]
[1754662920134,3.27,177.34,177.29,118.94]
[1754662920545,3.27,177.34,177.32,5.6381]
[1754662920742,4.64743991,177.37,177.33,118.86]
[1754662920941,3.27,177.35,177.33,118.86]
[1754662921141,3.27,177.38,177.34,9.9688706]
[1754662921343,3.27,177.39,177.37,9.9688706]
[1754662921538,9.43966338,177.45,177.37,128.8088706]
[1754662921539,3.27,177.38,177.37,128.8088706]
[1754662921743,3.27,177.38,177.37,118.84]
[1754662922643,7.91743991,177.42,177.37,118.84]
[1754662922843,3.27,177.42,177.4,9.9688706]
[1754662923047,3.27,177.42,177.41,118.82]
[1754662923247,3.27,177.44,177.41,118.82]
[1754662923642,3.27,177.43,177.41,118.82]
[1754662923846,3.27,177.42,177.41,118.82]
[1754662924045,3.27,177.43,177.41,118.82]
[1754662925947,3.27,177.42,177.41,118.82]
[1754662926353,2.98,177.44,177.41,118.82]
[1754662926540,4.64743991,177.45,177.42,5.6348]
[1754662926745,4.64743991,177.45,177.41,118.82]
[1754662926746,7.62743991,177.46,177.41,118.82]
[1754662926942,4.64743991,177.47,177.43,9.9688706]
[1754662927147,4.64743991,177.49,177.46,9.9688706]
[1754662927351,4.64743991,177.49,177.47,118.7]
[1754662927545,2.98,177.49,177.47,118.7]
[1754662927744,7.62743991,177.5,177.47,118.7]
[1754662927945,2.98,177.49,177.47,118.7]
[1754662928140,2.98,177.48,177.47,118.7]
[1754662928352,3.10029714,177.48,177.47,118.7]
[1754662928547,3.10029714,177.49,177.47,118.7]
[1754662928851,6.08029714,177.48,177.47,118.7]
[1754662929652,10.72773705,177.48,177.47,118.7]
[1754662930953,2.98,177.47,177.46,0.03563641]
[1754662931148,2.98,177.46,177.44,118.6]
[1754662931354,3.10029714,177.45,177.43,118.6]
[1754662931550,3.10029714,177.44,177.43,118.6]
[1754662931746,6.08029714,177.44,177.43,118.6]
[1754662932952,10.72773705,177.44,177.43,118.6]
[1754662933147,2.98,177.42,177.41,118.54]
[1754662933349,6.08029714,177.42,177.41,118.54]
[1754662933851,10.72773705,177.42,177.41,118.54]
[1754662934049,6.08029714,177.42,177.41,118.54]
[1754662934548,3.10029714,177.42,177.41,118.54]
[1754662934745,6.08029714,177.42,177.41,118.54]
[1754662934950,3.10133162,177.42,177.41,118.54]
[1754662935344,6.08133162,177.42,177.41,118.54]
[1754662935950,10.72877153,177.42,177.41,118.54]
[1754662936152,6.08133162,177.42,177.41,118.54]
[1754662936650,3.10133162,177.42,177.41,118.54]
[1754662937159,3.06569521,177.43,177.41,118.54]
[1754662937357,0.03634629,177.45,177.42,124.96081546]
[1754662937358,7.73147636,177.45,177.42,124.96081546]
[1754662937546,2.98,177.44,177.43,118.44]
[1754662937747,4.71513007,177.44,177.43,118.44]
[1754662937951,0.03634629,177.45,177.43,118.44]
[1754662937952,4.75147636,177.45,177.43,118.44]
[1754662938152,0.03634629,177.45,177.43,118.44]
[1754662938549,3.01634629,177.45,177.43,124.0747]
[1754662938753,3.01634629,177.45,177.43,118.44]
[1754662939152,3.01634629,177.45,177.43,124.0746]
[1754662939352,3.01634629,177.45,177.43,118.44]
[1754662939854,0.03634629,177.45,177.44,5.6344]
[1754662940363,0.03634629,177.45,177.43,124.0746]
[1754662940553,0.03634629,177.45,177.43,118.44]
[1754662941059,2.98,177.43,177.4,6.52081546]
[1754662941256,2.98,177.43,177.41,118.34]
[1754662941454,2.98,177.42,177.41,118.34]
[1754662942456,7.69513007,177.42,177.41,118.32]
[1754662942657,2.98,177.42,177.41,118.32]
[1754662943262,2.98,177.42,177.34,6.52081546]
[1754662943461,7.69597761,177.39,177.36,3.04]
[1754662943655,7.69597761,177.39,177.36,8.6767]
[1754662943855,2.98,177.39,177.36,3.04]
[1754662944164,0.04092318,177.39,177.38,9.56081546]
[1754662944362,0.04092318,177.39,177.38,127.84081546]
[1754662944558,0.04092318,177.39,177.38,133.47711546]
[1754662945955,4.71597761,177.43,177.38,130.44081546]
[1754662946156,7.69597761,177.45,177.43,3.04]
[1754662946461,7.69597761,177.45,177.44,118.22]
[1754662946664,2.98,177.45,177.44,118.22]
[1754662947858,6.28797015,177.45,177.44,118.22]
[1754662948059,9.26797015,177.45,177.42,118.18]
[1754662948354,4.71476541,177.43,177.42,118.18]
[1754662948559,2.98,177.43,177.42,118.18]
[1754662949165,10.79741655,177.43,177.42,118.18]
[1754662949564,6.08254788,177.43,177.42,118.18]
[1754662950069,2.98,177.43,177.42,118.18]
[1754662950262,6.08257219,177.43,177.42,118.18]
[1754662950463,12.37054234,177.43,177.42,118.18]
[1754662951162,6.08257219,177.43,177.42,118.18]
[1754662952369,6.08257219,177.43,177.37,9.56081546]
[1754662952561,10.79762151,177.42,177.4,118.08]
[1754662952761,3.10257219,177.41,177.4,5.6357]
[1754662952968,3.10257219,177.41,177.4,123.6957]
[1754662953171,10.79762151,177.41,177.4,118.06]
[1754662953565,3.10257219,177.41,177.4,121.1]
[1754662953972,3.10257219,177.41,177.4,118.06]
[1754662954272,10.79762151,177.41,177.4,118.06]
[1754662955066,6.08257219,177.41,177.4,118.06]
[1754662956062,3.15,177.4,177.35,3.04]
[1754662956267,4.71608512,177.38,177.36,121.17]
[1754662956466,4.71608512,177.38,177.37,121.17]
[1754662956665,3.10260777,177.38,177.37,121.17]
[1754662956868,3.10260777,177.38,177.37,126.8066]
[1754662957172,3.10260777,177.38,177.37,8.8266]
[1754662957469,3.10260777,177.38,177.37,126.7866]
[1754662957776,6.25260777,177.38,177.37,117.96]
[1754662958569,10.97041213,177.38,177.37,117.92]
[1754662959075,6.25260777,177.38,177.37,117.92]
[1754662959264,10.97041213,177.38,177.37,117.92]
[1754662959865,3.10260777,177.38,177.37,126.7466]
[1754662960172,7.82041213,177.38,177.37,126.7466]
[1754662960669,7.82041213,177.38,177.37,126.6866]
[1754662960869,3.10260777,177.38,177.37,126.6866]
[1754662961268,4.71780436,177.41,177.39,5.636]
[1754662961468,4.71780436,177.43,177.42,3.19]
[1754662961670,9.43797015,177.45,177.42,127.55081546]
[1754662961973,9.43797015,177.44,177.4,6.52081546]
[1754662962268,6.28797015,177.42,177.36,9.71081546]
[1754662962469,6.28797015,177.42,177.33,235.0]
[1754662962470,4.72628491,177.39,177.38,15.34711546]
[1754662962668,4.72628491,177.41,177.38,6.52081546]
[1754662962967,4.72628491,177.41,177.4,15.34651546]
[1754662963173,4.72628491,177.41,177.4,133.16651546]
[1754662963570,4.72628491,177.42,177.41,5.6353]
[1754662963769,4.72628491,177.42,177.41,8.8253]
[1754662964076,4.72820838,177.42,177.41,8.8253]
[1754662964280,9.43797015,177.42,177.4,124.34081546]
[1754662964575,6.28797015,177.43,177.4,124.34081546]
[1754662964771,15.84755545,177.53,177.4,124.34081546]
[1754662964772,6.28797015,177.44,177.43,5.6347]
[1754662965069,9.43797015,177.46,177.43,120.95]
[1754662965267,9.43797015,177.46,177.44,9.71081546]
[1754662965473,6.28797015,177.45,177.43,117.76]
[1754662965674,3.15,177.44,177.43,117.76]
[1754662965870,6.28797015,177.45,177.43,117.76]
[1754662966076,9.43797015,177.45,177.43,117.76]
[1754662966273,9.43797015,177.44,177.43,117.76]
[1754662966472,6.28797015,177.45,177.43,120.95]
[1754662966674,6.28797015,177.45,177.44,3.19]
[1754662967085,6.28797015,177.45,177.43,123.3946]
[1754662967286,3.15,177.44,177.43,123.3946]
[1754662967488,9.43797015,177.45,177.43,120.95]
[1754662968285,6.28797015,177.46,177.44,9.71081546]
[1754662968485,6.28797015,177.46,177.45,3.19]
[1754662968887,9.43797015,177.46,177.45,5.6339]
[1754662969100,9.43797015,177.46,177.44,6.52081546]
[1754662969290,9.43797015,177.46,177.44,12.15501546]
[1754662969885,9.43797015,177.46,177.44,247.15501546]
[1754662970085,9.43797015,177.46,177.45,5.6341]
[1754662970795,9.43797015,177.46,177.45,9.6352139]